bitfinex-derivatives/quotes_ETHF0:USTF0_20250904
["timestamp","ask_amount","ask_price","bid_price","bid_amount"]
[1756953884261,0.80555232,4431.8,4431.7,0.6893]
[1756953884664,0.61465232,4431.8,4431.7,0.6893]
[1756953885164,0.61465232,4431.8,4431.7,0.71905051]
[1756953886558,0.80555232,4431.8,4431.7,0.71905051]
[1756953888164,0.61465232,4431.8,4431.7,0.71905051]
[1756953888360,0.61405474,4431.8,4431.7,0.42155051]
[1756953888566,0.61405474,4431.8,4431.7,0.71905051]
[1756953888766,0.1127,4432.0,4431.7,0.71905051]
[1756953889068,0.61405385,4431.9,4431.8,0.71905051]
[1756953889268,0.1127,4432.0,4431.9,0.2975]
[1756953889559,0.2873,4433.0,4431.9,0.3918]
[1756953889760,32.743,4433.4,4432.8,0.3918]
[1756953889761,1.28247278,4432.9,4432.8,0.3918]
[1756953889967,1.28247278,4432.9,4431.8,0.02975051]
[1756953890154,0.6685,4432.4,4432.3,0.02975051]
[1756953890461,0.99517278,4432.4,4432.3,0.71905051]
[1756953890667,0.61397278,4432.4,4432.3,0.71905051]
[1756953891162,1.28247278,4432.4,4432.3,0.51785051]
[1756953891364,1.28247278,4432.4,4432.3,0.02975051]
[1756953893569,1.28247278,4432.4,4432.3,0.51785051]
[1756953893763,1.28247278,4432.4,4432.3,0.02975051]
[1756953894368,1.28247278,4432.4,4432.3,0.22035051]
[1756953894567,1.28247278,4432.4,4432.3,0.51785051]
[1756953894769,1.28247278,4432.4,4432.3,0.22035051]
[1756953895169,1.28247278,4432.4,4432.3,0.51785051]
[1756953895365,1.28247278,4432.4,4432.3,0.71905051]
[1756953895973,5.50808278,4432.4,4431.3,0.2975]
[1756953896269,0.6685,4431.1,4431.0,0.4881]
[1756953896474,1.28247278,4431.1,4431.0,0.4881]
[1756953896674,0.99517278,4431.1,4430.7,0.2975]
[1756953896874,0.1204,4431.5,4430.7,0.2975]
[1756953896875,0.2873,4431.0,4430.7,0.2975]
[1756953897076,0.6685,4430.8,4430.7,0.1906]
[1756953897368,0.2873,4430.7,4430.4,0.2975]
[1756953897569,0.6685,4430.5,4430.4,0.4881]
[1756953898675,0.6685,4430.5,4430.4,0.6893]
[1756953899080,0.7889,4430.5,4429.6,0.2975]
[1756953899274,1.28182473,4430.4,4430.3,0.4881]
[1756953899576,0.6685,4430.4,4430.3,0.6893]
[1756953899772,0.2873,4430.8,4430.3,0.3918]
[1756953899972,0.80416008,4430.7,4430.6,0.6893]
[1756953900271,0.61326008,4430.7,4430.6,0.6893]
[1756953900479,0.2873,4431.8,4430.7,0.2975]
[1756953900675,0.1909,4431.8,4431.7,0.6893]
[1756953900870,0.3812,4431.8,4431.1,0.5335]
[1756953901172,0.6685,4431.2,4430.5,0.1144]
[1756953901371,0.6685,4431.2,4430.6,0.2975]
[1756953902779,0.6685,4431.2,4430.2,0.2975]
[1756953905280,0.61324602,4431.1,4430.2,0.2975]
[1756953905482,0.1909,4430.3,4430.2,0.6893]
[1756953907781,0.4077,4431.0,4430.3,0.2975]
[1756953907984,0.4077,4431.0,4430.8,0.1906]
[1756953907985,0.99436824,4430.9,4430.8,0.1906]
[1756953908184,1.28166824,4430.9,4430.8,0.4881]
[1756953909990,0.6685,4430.9,4430.1,0.2975]
[1756953910289,0.72523124,4430.8,4430.1,0.2975]
[1756953910589,0.1909,4430.2,4430.1,0.6893]
[1756953912584,0.3812,4430.2,4430.1,0.6893]
[1756953913987,0.6739,4430.2,4430.1,0.6893]
[1756953915488,0.3101,4430.8,4430.7,0.3998]
[1756953915692,0.1974,4430.8,4430.7,0.7046]
[1756953916395,0.2927,4431.8,4431.5,0.114]
[1756953916690,0.2927,4432.3,4431.8,0.3048]
[1756953916882,1.01549836,4432.2,4432.1,0.3998]
[1756953917082,1.30819836,4432.2,4432.1,0.3998]
[1756953917795,0.61249836,4432.2,4432.1,4.3998]
[1756953917996,1.30847845,4434.5,4433.4,0.3998]
[1756953918192,0.2927,4433.4,4432.5,0.114]
[1756953918391,0.1974,4432.6,4432.5,0.5138]
[1756953918895,0.1974,4433.4,4433.3,0.7046]
[1756953920192,0.6957,4433.4,4433.3,0.197]
[1756953920696,1.30744703,4433.4,4433.3,0.197]
[1756953920997,0.6957,4432.7,4432.6,0.5018]
[1756953921196,0.6957,4432.7,4432.6,0.7046]
[1756953921594,0.8103,4433.5,4433.4,0.197]
[1756953921793,1.30728223,4433.5,4433.4,0.5018]
[1756953922199,1.30728223,4433.5,4433.4,0.7046]
[1756953923393,0.6957,4433.5,4433.4,0.7046]
[1756953923594,0.6957,4433.5,4433.4,0.197]
[1756953923790,0.2927,4433.4,4433.1,0.3048]
[1756953923994,0.6957,4433.2,4433.1,0.5018]
[1756953924196,0.6957,4433.2,4433.1,0.7046]
[1756953924395,0.6957,4433.2,4433.0,0.114]
[1756953924396,0.6957,4433.9,4433.8,0.197]
[1756953924596,1.30679273,4433.9,4433.1,0.3048]
[1756953924797,0.6957,4433.2,4433.1,0.6988]
[1756953925395,0.6957,4433.2,4433.1,0.5018]
[1756953925602,0.6957,4433.2,4432.8,0.236]
[1756953925792,0.403,4433.2,4432.8,0.3048]
[1756953925990,0.6957,4432.8,4432.7,0.433]
[1756953926396,0.6957,4432.1,4432.0,0.197]
[1756953926997,0.6957,4432.1,4432.0,0.5018]
[1756953927197,0.6957,4432.1,4432.0,0.7046]
[1756953928206,0.1974,4432.1,4432.0,0.8186]
[1756953928401,0.6957,4432.1,4432.0,0.5018]
[1756953928604,0.6957,4432.1,4432.0,0.197]
[1756953928802,0.403,4431.8,4431.7,0.5018]
[1756953929008,0.6957,4431.8,4431.7,0.7378]
[1756953929307,0.6957,4431.8,4431.7,0.9406]
[1756953930603,0.2927,4432.4,4431.8,0.3048]
[1756953930804,0.4901,4432.4,4432.3,0.3998]
[1756953931001,0.2927,4432.8,4432.4,0.3048]
[1756953931196,0.2927,4433.4,4432.5,0.114]
[1756953931402,0.61094551,4433.3,4432.6,0.3048]
[1756953931608,0.1974,4432.7,4432.6,0.3998]
[1756953931804,0.403,4432.7,4432.6,0.7046]
[1756953932002,0.6957,4432.7,4432.6,0.7046]
[1756953933107,0.2927,4433.4,4432.7,0.3048]
[1756953933418,0.1146,4433.5,4432.7,0.7046]
[1756953933419,0.6957,4432.8,4432.7,0.7046]
[1756953935409,0.2927,4433.3,4432.8,0.3048]
[1756953935612,0.4901,4433.3,4433.2,0.7046]
[1756953935809,0.2927,4433.8,4433.2,0.7046]
[1756953936114,0.6957,4433.8,4433.7,0.197]
[1756953936312,0.6957,4433.8,4433.7,0.7046]
[1756953937313,0.6957,4433.8,4433.7,0.197]
[1756953937715,0.6957,4433.8,4433.7,0.7046]
[1756953938010,0.403,4433.8,4433.7,0.7046]
[1756953938216,0.1974,4433.8,4433.7,0.7046]
[1756953939110,0.2927,4434.2,4433.8,0.3048]
[1756953939310,0.6957,4434.2,4434.1,0.7046]
[1756953940616,1.30626424,4434.2,4434.1,0.7046]
[1756953941811,0.80796424,4434.2,4434.1,0.7046]
[1756953942114,0.61056424,4434.2,4434.1,0.7046]
[1756953942816,0.80056424,4434.2,4434.1,0.7046]
[1756953943210,1.30656424,4434.2,4434.1,0.7046]
[1756953943610,1.30656424,4434.2,4433.7,0.3105]
[1756953943813,0.696,4433.8,4433.7,0.5174]
[1756953944115,0.696,4433.8,4433.7,0.7072]
[1756953945206,0.3915,4433.8,4433.7,0.7072]
[1756953945411,0.19,4433.8,4433.7,0.7072]
[1756953945716,0.61169373,4434.0,4433.7,0.7072]
[1756953945914,0.61169373,4433.9,4433.8,0.7072]
[1756953946116,0.696,4434.5,4434.4,0.2069]
[1756953946316,1.30771347,4434.5,4434.4,0.2069]
[1756953946513,1.53322348,4434.5,4434.0,0.1147]
[1756953946716,0.696,4434.1,4434.0,0.3105]
[1756953947020,0.19,4433.6,4433.5,0.8219]
[1756953947219,0.696,4433.6,4433.5,0.7072]
[1756953947413,1.30771347,4433.6,4433.5,0.7072]
[1756953948227,1.30771347,4433.6,4433.3,1.42487824]
[1756953948423,0.696,4433.1,4433.0,1.94227824]
[1756953948723,1.30771347,4433.1,4433.0,1.94227824]
[1756953949121,1.30771347,4433.1,4433.0,1.63177824]
[1756953949524,1.30771347,4433.1,4433.0,0.2069]
[1756953950124,1.30771347,4433.1,4433.0,0.7072]
[1756953950720,0.696,4433.1,4433.0,0.7072]
[1756953951422,0.696,4433.1,4433.0,0.8219]
[1756953951723,0.19,4433.1,4433.0,0.8219]
[1756953952516,0.19,4433.2,4433.1,0.7072]
[1756953953312,0.1249,4434.0,4433.1,0.3967]
[1756953953520,0.80230037,4433.9,4433.2,0.3105]
[1756953953826,0.19,4433.9,4433.8,0.7072]
[1756953954325,0.80229236,4433.9,4433.8,0.7072]
[1756953955124,0.3045,4434.8,4433.8,0.3967]
[1756953955319,0.61245618,4434.7,4434.0,0.1147]
[1756953955519,0.19,4434.2,4434.1,0.7072]
[1756953955730,0.3915,4434.2,4434.1,0.7072]
[1756953955925,0.696,4434.2,4433.6,0.5465]
[1756953956127,0.696,4434.2,4433.6,0.77204]
[1756953956318,0.61239775,4434.1,4433.6,0.3105]
[1756953956518,0.3045,4434.2,4433.7,0.3105]
[1756953956719,0.19,4433.8,4433.7,0.7072]
[1756953957323,0.4945,4434.2,4434.1,0.7072]
[1756953957626,1.30863385,4434.2,4434.1,0.2069]
[1756953958324,1.30863385,4434.2,4434.1,0.5174]
[1756953958519,1.30863385,4434.2,4434.1,0.7072]
[1756953959226,1.30863385,4434.2,4433.6,0.3105]
[1756953959427,0.19,4433.7,4433.6,0.7072]
[1756953960821,0.3045,4434.0,4433.6,0.7072]
[1756953961021,0.61323909,4433.9,4433.7,0.3105]
[1756953961228,0.61323909,4433.8,4433.7,0.7072]
[1756953964827,0.80323909,4433.8,4433.7,0.9432]
[1756953965621,1.30923909,4433.8,4433.7,0.9432]
[1756953968832,0.61323909,4433.8,4433.7,0.9432]
[1756953969329,0.80323909,4433.8,4433.7,0.9432]
[1756953970631,1.00473909,4433.8,4433.7,0.9432]
[1756953970833,1.30923909,4433.8,4433.7,0.9432]
[1756953971532,1.30923909,4433.8,4433.7,2.41657829]
[1756953972329,0.80323909,4433.8,4433.7,2.41657829]
[1756953974129,1.29583909,4433.8,4433.7,0.9432]
[1756953974327,0.6886,4432.6,4432.0,0.4194]
[1756953974532,0.196,4432.1,4432.0,0.5126]
[1756953974836,0.6886,4432.1,4432.0,0.5126]
[1756953975133,0.6886,4432.1,4432.0,0.8173]
[1756953976344,0.3863,4432.1,4432.0,0.8173]
[1756953976541,0.6886,4432.1,4432.0,0.8173]
[1756953977334,1.30261001,4432.1,4432.0,0.7026]
[1756953977736,1.30261001,4432.1,4431.8,0.236]
[1756953977935,1.00037162,4432.0,4431.9,0.4358]
[1756953978141,0.3863,4432.0,4431.9,0.4358]
[1756953978548,0.6886,4432.0,4431.9,0.7405]
[1756953979542,0.6886,4432.0,4431.9,0.5045]
[1756953979750,0.4216,4431.5,4431.4,1.70937829]
[1756953980048,0.8079,4431.5,4431.4,2.14517829]
[1756953980448,0.8079,4431.5,4431.4,2.44987829]
[1756953980751,0.6886,4431.5,4431.4,2.64797829]
[1756953986240,0.8079,4431.5,4431.2,32.486]
[1756953986446,0.3023,4431.3,4431.0,0.3047]
[1756953986653,0.6886,4431.2,4431.1,0.7405]
[1756953987247,0.6886,4431.2,4431.1,0.4358]
[1756953987555,1.30011909,4431.2,4431.1,0.4358]
[1756953987953,1.30011909,4431.2,4430.5,1.90917829]
[1756953987954,0.6886,4430.6,4430.5,1.90917829]
[1756953988247,0.6886,4430.6,4430.5,2.44987829]
[1756953988849,0.6886,4430.6,4430.5,2.64797829]
[1756953990150,0.6886,4430.6,4430.5,2.77277829]
[1756953991051,0.6886,4430.6,4430.5,0.236]
[1756953991246,0.6886,4430.6,4430.3,1.70937829]
[1756953991450,0.3023,4430.5,4430.4,0.236]
[1756953991654,0.8079,4430.5,4430.4,0.4358]
[1756953993153,0.8079,4430.5,4430.4,0.7405]
[1756953993553,0.8079,4430.5,4430.4,0.5045]
[1756953994251,0.6886,4430.5,4430.4,0.7026]
[1756953995149,0.6886,4430.5,4430.4,0.1998]
[1756953995150,0.8079,4430.5,4430.4,0.1998]
[1756953995454,0.8079,4430.5,4430.3,0.236]
[1756953995654,0.5056,4430.5,4430.4,0.1998]
[1756953995854,0.8079,4430.5,4430.4,0.5045]
[1756953996857,0.6886,4430.5,4430.4,0.7026]
[1756953997053,0.196,4430.5,4430.4,2.41197829]
[1756953997558,0.196,4430.5,4430.4,0.7026]
[1756953998059,0.196,4431.0,4430.9,0.3979]
[1756953998259,0.6886,4431.4,4431.3,0.3979]
[1756953998460,1.29963425,4431.4,4431.3,0.7026]
[1756953998663,0.6886,4431.4,4431.3,0.7026]
[1756954000259,1.30087345,4431.4,4431.3,0.7026]
[1756954001561,0.61227345,4431.4,4431.3,0.7026]
[1756954001761,0.6886,4432.3,4432.2,0.1998]
[1756954002064,0.6886,4432.3,4432.2,0.5034]
[1756954002065,1.30125683,4432.3,4432.2,0.5034]
[1756954002456,1.30125683,4432.3,4431.6,0.3036]
[1756954002657,0.61310186,4432.2,4431.6,0.3036]
[1756954002960,0.503,4431.7,4431.6,0.6916]
[1756954003159,1.11610186,4431.7,4431.6,0.6916]
[1756954003761,0.80320186,4431.7,4431.6,0.6916]
[1756954004363,1.32170186,4431.7,4431.6,0.6916]
[1756954005660,7.03108015,4431.7,4430.6,0.3036]
[1756954005859,0.7086,4430.7,4430.6,0.9266]
[1756954006060,1.32170186,4430.7,4430.6,0.9266]
[1756954006260,1.32170186,4430.7,4430.6,0.6916]
[1756954006461,1.00880186,4430.7,4430.6,0.9266]
[1756954006656,0.61310186,4430.7,4430.6,2.63597829]
[1756954006862,0.3129,4431.4,4431.3,0.6916]
[1756954007063,0.7086,4431.4,4431.3,0.6916]
[1756954007259,1.32296619,4431.4,4431.3,0.6916]
[1756954008254,1.01006619,4431.4,4431.3,0.6916]
[1756954008460,1.01006619,4431.4,4431.3,0.1897]
[1756954008768,0.3957,4430.7,4430.3,0.235]
[1756954008968,0.7086,4430.5,4430.4,0.4933]
[1756954009170,1.32296619,4430.5,4430.4,0.6916]
[1756954011172,0.61436619,4430.5,4430.4,0.6916]
[1756954011465,0.61436619,4430.5,4430.4,0.388]
[1756954011661,0.61436619,4431.0,4430.4,0.388]
[1756954011862,0.92726619,4430.9,4430.5,0.1258]
[1756954012063,0.7086,4430.9,4430.8,0.6916]
[1756954012367,0.7086,4430.9,4430.0,0.1248]
[1756954012368,1.01056113,4430.9,4430.2,0.235]
[1756954012574,0.1901,4430.1,4430.0,0.8164]
[1756954012871,0.80496113,4430.1,4430.0,1.0514]
[1756954013168,0.61486113,4430.1,4430.0,1.0514]
[1756954013571,0.61486113,4430.1,4430.0,2.47826483]
[1756954013763,0.80496113,4430.1,4430.0,2.24326483]
[1756954014063,0.80496113,4430.1,4430.0,2.47826483]
[1756954014262,0.61486113,4430.1,4430.0,2.47826483]
[1756954014866,0.80496113,4430.1,4430.0,2.47826483]
[1756954015065,1.32346113,4430.1,4430.0,2.47826483]
[1756954015667,1.32346113,4430.1,4430.0,0.235]
[1756954015870,1.32346113,4430.1,4429.5,0.1258]
[1756954015871,0.3957,4429.7,4429.6,1.92016483]
[1756954016070,0.7086,4429.7,4429.6,2.35346483]
[1756954016271,1.01056113,4429.7,4429.6,2.11846483]
[1756954016465,1.32346113,4429.7,4429.6,2.35346483]
[1756954017970,0.61486113,4429.7,4429.6,2.35346483]
[1756954019272,1.32346113,4429.7,4429.6,0.4247]
[1756954019661,1.32346113,4429.7,4429.6,0.235]
[1756954019872,1.32346113,4429.7,4429.5,0.235]
[1756954020176,1.32346113,4429.6,4429.5,0.235]
[1756954020474,1.32346113,4429.6,4429.5,0.4247]
[1756954020669,1.32346113,4429.6,4429.5,0.7283]
[1756954022469,1.32346113,4429.6,4429.5,0.4933]
[1756954022670,0.3129,4429.1,4428.6,0.6916]
[1756954022872,0.8224,4429.5,4429.4,0.1897]
[1756954023173,1.43633591,4429.5,4429.4,0.4933]
[1756954023372,0.7086,4429.0,4428.9,2.11846483]
[1756954023678,1.32253591,4429.0,4428.9,0.6916]
[1756954024271,0.7086,4428.9,4428.8,0.388]
[1756954024471,1.00963591,4428.9,4428.8,2.11846483]
[1756954024673,0.61393591,4428.9,4428.8,2.11846483]
[1756954024975,0.1901,4430.0,4429.9,0.6916]
[1756954025172,0.1901,4430.0,4429.9,2.11846483]
[1756954025383,0.80340897,4430.0,4429.9,2.11846483]
[1756954025570,0.61330897,4430.0,4429.9,2.11846483]
[1756954025769,0.7086,4430.4,4430.0,0.1258]
[1756954025972,0.8034006,4430.3,4430.2,0.388]
[1756954026279,0.8034006,4430.3,4430.2,0.6916]
[1756954026280,1.3219006,4430.3,4430.2,0.6916]
[1756954026878,1.3219006,4430.3,4430.2,2.11846483]
[1756954027080,0.3129,4430.8,4430.2,2.11846483]
[1756954027278,1.32189472,4430.7,4430.6,0.388]
[1756954027575,1.00899472,4430.7,4430.0,1.78766483]
[1756954027779,0.7086,4430.1,4430.0,2.47926483]
[1756954028879,0.3957,4430.1,4430.0,2.47926483]
[1756954029079,0.7086,4430.1,4430.0,1.0524]
[1756954030075,0.3957,4430.1,4430.0,1.0524]
[1756954030476,0.3957,4430.1,4429.7,0.4933]
[1756954030477,0.3957,4429.8,4429.7,0.4933]
[1756954030779,0.7086,4429.8,4429.7,0.6916]
[1756954031570,0.3957,4429.8,4429.7,2.11846483]
[1756954031769,0.3129,4430.1,4429.7,2.11846483]
[1756954031978,0.7079,4430.5,4430.4,0.192]
[1756954032184,1.44435071,4430.5,4430.4,0.192]
[1756954032483,1.13145071,4430.5,4430.0,1.54136483]
[1756954032683,0.395,4430.2,4430.1,0.4887]
[1756954032885,0.7074,4430.2,4430.1,0.4887]
[1756954033175,1.32005071,4430.2,4430.1,0.192]
[1756954033784,1.32005071,4430.2,4430.1,0.6844]
[1756954034974,0.3124,4430.6,4430.2,0.2967]
[1756954035173,1.19493022,4431.3,4430.5,0.5022]
[1756954035385,0.61354373,4431.2,4431.1,0.6844]
[1756954035676,0.7074,4432.3,4432.2,0.192]
[1756954035881,1.3210874,4432.3,4432.2,0.192]
[1756954036478,0.395,4432.0,4431.9,0.4887]
[1756954036681,1.3210874,4432.0,4431.9,0.192]
[1756954037385,1.3210874,4432.0,4431.9,0.6844]
[1756954037577,1.0086874,4432.0,4431.9,0.6844]
[1756954038477,0.1984,4432.0,4431.9,0.6844]
[1756954040287,0.3124,4432.8,4432.2,0.3877]
[1756954040474,0.81087235,4432.7,4432.6,2.11126483]
[1756954040676,1.12327235,4432.7,4432.6,2.11126483]
[1756954040876,1.31987235,4432.7,4432.6,2.11126483]
[1756954041286,1.00747235,4432.7,4432.6,2.11126483]
[1756954041487,0.395,4432.7,4432.6,2.11126483]
[1756954042484,0.1984,4432.7,4432.6,2.11126483]
[1756954043089,0.1984,4433.1,4433.0,0.5022]
[1756954043387,0.3124,4433.5,4433.1,0.2967]
[1756954043578,0.5108,4433.5,4433.4,2.11126483]
[1756954043779,0.7074,4433.5,4433.4,2.11126483]
[1756954043983,1.31940856,4433.5,4433.4,2.11126483]
[1756954044179,0.7074,4433.5,4433.4,2.11126483]
[1756954044578,0.7074,4433.5,4432.7,0.235]
[1756954044579,0.5188,4433.5,4432.7,0.235]
[1756954044785,0.7074,4433.1,4433.0,0.4887]
[1756954045077,0.7074,4433.1,4433.0,0.7989]
[1756954045485,0.7074,4433.1,4433.0,0.6844]
[1756954045687,0.395,4432.8,4432.7,0.427]
[1756954045877,0.7074,4432.8,4432.7,0.9194]
[1756954047393,0.7074,4432.8,4432.7,2.34626483]
[1756954047584,0.7074,4432.8,4432.0,0.6227]
[1756954047585,0.7074,4432.1,4432.0,0.6227]
[1756954047785,0.7074,4432.1,4432.0,0.7372]
[1756954048288,0.7074,4432.1,4432.0,1.0339]
[1756954048787,0.7074,4433.0,4432.9,0.6844]
[1756954048985,0.7074,4433.0,4432.9,2.11126483]
[1756954049184,0.7074,4433.0,4432.9,0.6844]
[1756954049385,0.8312,4433.0,4432.7,1.42686483]
[1756954049584,0.3124,4432.9,4432.7,1.42686483]
[1756954049785,0.395,4432.9,4432.8,0.192]
[1756954049985,0.7074,4432.9,4432.8,0.4887]
[1756954050881,0.7074,4432.9,4432.8,0.6844]
[1756954051290,1.31832638,4432.9,4432.8,0.6844]
[1756954052498,1.00592638,4432.9,4432.7,1.42686483]
[1756954052696,1.31832638,4432.8,4432.7,1.42686483]
[1756954053196,1.31832638,4432.8,4432.4,0.2967]
[1756954053399,0.7074,4432.5,4432.4,0.192]
[1756954053590,0.5188,4432.5,4432.3,1.42686483]
[1756954053786,0.7074,4432.4,4432.3,1.72356483]
[1756954053994,0.7074,4432.4,4432.3,1.91556483]
[1756954054297,0.7074,4432.4,4432.3,1.42686483]
[1756954054898,0.7074,4432.4,4432.3,1.91556483]
[1756954055298,0.7074,4432.4,4432.3,2.11126483]
[1756954055601,1.31941768,4432.4,4432.3,2.11126483]
[1756954056193,1.00701768,4432.4,4432.3,2.11126483]
[1756954056399,0.81041768,4432.4,4432.3,2.11126483]
[1756954057001,1.31941768,4432.4,4432.3,2.11126483]
[1756954057596,1.31941768,4432.4,4432.3,1.61886483]
[1756954057796,1.31941768,4432.4,4432.3,1.91556483]
[1756954058299,1.31941768,4432.4,4432.3,2.11126483]
[1756954059694,1.00701768,4432.4,4432.3,2.11126483]
[1756954060502,1.31941768,4432.4,4432.3,2.11126483]
[1756954061209,0.7074,4432.4,4432.3,2.11126483]
[1756954061502,1.31926507,4432.4,4432.3,0.4887]
[1756954061803,1.00686507,4432.4,4432.3,2.11126483]
[1756954062396,1.29256507,4432.4,4432.3,2.11126483]
[1756954064205,1.29354198,4432.4,4432.3,2.11126483]
[1756954065905,0.61284198,4432.4,4432.3,2.11126483]
[1756954066205,0.1238,4434.0,4432.3,7.76373966]
[1756954066206,1.19493022,4433.7,4432.3,7.76373966]
[1756954066405,1.89143022,4433.7,4433.6,2.11846483]
[1756954067197,1.89143022,4433.7,4433.0,0.1162]
[1756954067198,1.60573022,4433.7,4433.4,1.42686483]
[1756954067405,0.8109,4433.5,4433.4,1.62746483]
[1756954067601,0.6965,4433.5,4433.4,2.11846483]
[1756954070508,0.4108,4433.5,4433.4,2.11846483]
[1756954070709,0.2016,4433.5,4433.4,2.11846483]
[1756954071403,0.2857,4433.9,4433.4,1.82986483]
[1756954071598,0.2857,4433.9,4433.8,0.6916]
[1756954071599,0.2016,4433.9,4433.8,0.6916]
[1756954072703,0.4108,4433.9,4433.8,0.6916]
[1756954072903,0.6965,4433.9,4433.8,0.2886]
[1756954073907,0.6965,4433.9,4433.8,0.4892]
[1756954074610,0.4108,4433.9,4433.3,1.99838169]
[1756954074806,0.6965,4433.4,4433.3,2.11278169]
[1756954075007,0.6965,4433.4,4433.3,0.403]
[1756954075403,0.6965,4433.4,4433.3,0.6916]
[1756954075802,0.6965,4433.4,4432.6,0.2886]
[1756954076009,0.2016,4432.7,4432.6,0.6916]
[1756954076205,0.6965,4432.7,4432.6,0.6916]
[1756954076402,1.89263234,4432.7,4432.3,0.2886]
[1756954076604,1.19613234,4432.4,4432.1,1.99838169]
[1756954076804,1.89263234,4432.4,4432.3,0.4892]
[1756954077104,1.89263234,4432.4,4432.3,0.6916]
[1756954078313,2.50294457,4432.4,4432.3,0.6916]
[1756954078502,2.21724457,4432.4,4432.3,0.6916]
[1756954079110,1.02111223,4432.4,4432.3,0.6916]
[1756954080309,1.30681223,4432.4,4432.3,0.6916]
[1756954084500,0.61031223,4432.4,4432.3,0.6916]
[1756954085607,1.02111223,4432.4,4432.3,0.6916]
[1756954085808,1.30681223,4432.4,4432.3,0.6916]
[1756954092204,1.30681223,4432.4,4431.0,0.1162]
[1756954092413,0.4017,4431.7,4431.6,0.5076]
[1756954092612,0.7157,4431.7,4431.6,0.7008]
[1756954097418,1.32533561,4431.7,4431.6,0.7008]
[1756954099415,0.7157,4431.1,4430.6,0.3014]
[1756954099717,0.1248,4431.5,4430.6,0.7008]
[1756954099718,0.7157,4430.7,4430.6,0.7008]
[1756954101510,0.2012,4430.7,4430.6,0.7008]
[1756954103418,0.5152,4430.7,4430.6,0.7008]
[1756954103720,0.7157,4430.7,4430.6,0.7008]
[1756954104914,0.7157,4430.7,4430.5,0.234]
[1756954105221,0.7157,4430.7,4430.6,0.2062]
[1756954105523,1.3250757,4430.7,4430.4,0.3014]
[1756954105819,0.7157,4430.5,4430.4,0.7008]
[1756954106012,1.3250757,4430.5,4430.4,0.7008]
[1756954106213,1.4498757,4430.5,4430.4,0.2062]
[1756954106413,1.4498757,4430.5,4430.2,0.234]
[1756954106718,0.7157,4430.3,4430.2,0.7416]
[1756954106918,1.0110757,4430.3,4430.0,1.70978169]
[1756954107116,0.7157,4430.1,4430.0,1.91598169]
[1756954107317,0.4017,4429.8,4429.7,0.5076]
[1756954107516,0.7157,4429.8,4429.7,0.7008]
[1756954107821,1.3250757,4429.8,4429.7,0.7008]
[1756954108319,0.7157,4429.8,4429.7,0.7008]
[1756954108817,0.314,4429.1,4428.6,0.3014]
[1756954109123,0.7157,4428.7,4428.6,0.7008]
[1756954110330,0.4017,4428.7,4428.6,0.7008]
[1756954110518,0.7157,4428.7,4428.6,0.7008]
[1756954111616,0.314,4428.6,4428.5,0.2062]
[1756954111822,0.7157,4428.6,4428.5,0.7008]
[1756954112525,0.4017,4428.6,4428.5,0.8144]
[1756954113316,0.7157,4428.6,4428.5,0.8144]
[1756954113516,0.4017,4428.6,4428.5,0.8144]
[1756954113712,0.314,4429.0,4428.5,0.8144]
[1756954113918,0.314,4428.6,4428.5,0.1136]
[1756954114211,0.4017,4428.7,4428.2,1.70978169]
[1756954114212,0.7157,4428.3,4428.2,0.2062]
[1756954114621,0.7157,4428.3,4428.2,0.5076]
[1756954114824,0.7157,4428.3,4427.5,0.1136]
[1756954115023,0.7157,4428.3,4428.2,0.7008]
[1756954115520,0.314,4428.6,4428.2,0.7008]
[1756954115725,0.2012,4428.6,4428.5,0.8144]
[1756954116318,0.7157,4428.6,4428.5,0.7008]
[1756954119120,0.7157,4428.6,4428.5,0.8144]
[1756954119925,0.2012,4428.6,4428.5,0.8144]
[1756954120126,0.2012,4428.6,4428.5,2.52418169]
[1756954120528,0.314,4429.4,4428.6,0.3014]
[1756954120727,1.32172407,4429.3,4429.2,0.2062]
[1756954122229,1.32172407,4429.3,4429.0,0.3014]
[1756954122528,0.5031,4428.6,4428.5,0.8175]
[1756954123726,0.7074,4428.6,4428.5,0.8175]
[1756954124830,0.8235,4428.5,4428.4,0.1905]
[1756954125027,1.43001297,4428.5,4428.4,0.5013]
[1756954125329,1.31391297,4428.5,4428.4,0.7039]
[1756954128732,1.19613234,4429.4,4428.5,0.1255]
[1756954128932,0.2043,4429.5,4429.4,0.3108]
[1756954129140,0.8235,4429.5,4428.4,1.70978169]
[1756954129430,0.1928,4428.6,4428.5,0.5186]
[1756954129631,0.7074,4428.6,4428.5,0.5186]
[1756954129831,0.7074,4428.6,4428.5,0.8294]
[1756954130437,0.7074,4428.6,4428.5,0.7039]
[1756954131033,1.59672256,4429.4,4428.8,0.3931]
[1756954131034,0.3103,4429.4,4428.8,0.3931]
[1756954131223,0.1928,4429.0,4428.9,0.7039]
[1756954131636,0.1161,4429.5,4428.7,1.70978169]
[1756954131637,1.31223234,4429.5,4429.0,0.1255]
[1756954131831,1.19613234,4429.8,4429.5,0.1255]
[1756954132131,0.5031,4429.6,4429.5,0.8294]
[1756954132337,0.7074,4429.6,4429.5,0.7039]
[1756954133539,0.7074,4429.6,4428.9,0.3108]
[1756954133540,0.1161,4429.5,4428.9,0.3108]
[1756954133738,0.1928,4429.0,4428.9,0.7039]
[1756954134226,0.1161,4429.5,4428.9,0.7039]
[1756954134227,0.1161,4429.5,4428.9,0.3931]
[1756954134432,0.8235,4429.5,4429.4,0.5013]
[1756954134944,0.7074,4429.5,4429.4,0.7039]
[1756954135140,0.3971,4429.5,4429.4,0.7039]
[1756954135441,0.1928,4429.5,4429.4,2.13123375]
[1756954136540,1.19613234,4429.7,4429.6,0.7039]
[1756954136844,1.38893234,4430.0,4429.9,0.7039]
[1756954137039,1.38893234,4430.0,4429.9,2.13123375]